lending/lending_fUSD_20240207
["ID","MTS","AMOUNT","RATE_DAILY","PERIOD"]
[313391463,1707267183808,205.0,0.00022107,2]
[313391464,1707267647647,150.0,0.00022,2]
[313391465,1707267846344,164.77,0.000221,2]
[313391466,1707267847587,470.51,0.00020182,2]
[313391467,1707267847788,470.51,0.00022446,2]
[313391468,1707267975973,250.0,0.00022028,2]
[313391469,1707268018100,10000.0,0.00022028,2]
[313391470,1707268059201,193.56,0.00022028,10]
[313391471,1707268079075,189.12,0.00021994,2]
[313391472,1707268115506,2000.0,0.0002202,2]
[313391473,1707268139159,14063.69,0.00022049,2]
[313391474,1707268140796,182.65,0.00022083,2]
[313391475,1707268141820,670.71,0.00022083,2]
[313391500,1707268232471,-2975.1026,0.00022699,2]
[313391501,1707268232480,-154.48083988,0.000227,2]
[313391502,1707268232489,-180.92,0.0002273,2]
[313391503,1707268232499,-157.9,0.00022774,2]
[313391504,1707268232508,-150.0,0.00022798,2]
[313391505,1707268232517,-300.0,0.00022798,2]
[313391506,1707268232527,-18708.5734,0.00022799,2]
[313391507,1707268232537,-427.7708,0.000228,2]
[313391508,1707268232546,-999.8928,0.000228,2]
[313391509,1707268232555,-8607.21,0.00022815,2]
[313391510,1707268232565,-1413.39,0.00022879,2]
[313391511,1707268232574,-157.9,0.00022882,2]
[313391512,1707268232583,-356.1578955,0.00022889,2]
[313391513,1707268232593,-499.99,0.00022889,2]
[313391514,1707268232602,-2470.0,0.00022897,2]
[313391515,1707268232611,-691.37881261,0.00022897,2]
[313391516,1707268232620,-580.92,0.00022897,2]
[313391517,1707268232630,-710.88,0.00022898,2]
[313391518,1707268232639,-736.67,0.00022898,2]
[313391519,1707268232648,-719.0,0.00022898,2]
[313391520,1707268232657,-728.97,0.00022898,2]
[313391521,1707268232666,-715.31,0.00022898,2]
[313391522,1707268232675,-710.72,0.00022898,2]
[313391523,1707268232685,-738.22,0.00022898,2]
[313391524,1707268232694,-728.33,0.00022898,2]
[313391525,1707268232703,-245.5706,0.00022899,2]
[313391526,1707268232712,-730.07,0.00022899,2]
[313391527,1707268232722,-735.97,0.00022899,2]
[313391528,1707268232731,-33070.15653028,0.00022899,2]
[313391530,1707268238205,-13096.31513527,0.00022899,2]
[313391532,1707268238260,-13411.24174624,0.00022899,2]
[313391533,1707268238273,-56093.89178847,0.00022899,2]
[313391534,1707268238285,-1383.74375067,0.00022899,2]
[313391535,1707268238293,-729.12,0.000229,2]
[313391536,1707268238302,-714.38,0.000229,2]
[313391537,1707268238313,-71999.12817474,0.000229,2]
[313391538,1707268238324,-13632.44,0.000229,2]
[313391539,1707268238333,-162.48082418,0.00022964,2]
[313391540,1707268238343,-729.52,0.00022974,2]
[313391541,1707268238352,-157.9,0.0002299,2]
[313391542,1707268238362,-3628.74973235,0.00022998,2]
[313391543,1707268238372,-57934.68613057,0.00022998,2]
[313391544,1707268238381,-1650.0,0.00022999,2]
[313391545,1707268238390,-336.95912821,0.00022999,10]
[313391546,1707268238398,-710.88,0.00023,2]
[313391547,1707268238408,-709.61,0.00023,2]
[313391548,1707268238417,-1223353.43447213,0.00023,2]
[313391549,1707268238426,-157.9,0.00023098,2]
[313391550,1707268238435,-150.0,0.00023174,2]
[313391551,1707268238444,-157.9,0.00023206,2]
[313391552,1707268238453,-154.48083983,0.00023239,2]
[313391553,1707268238464,-157.9,0.00023313,2]
[313391554,1707268238474,-157.9,0.00023421,2]
[313391555,1707268238483,-157.9,0.00023529,2]
[313391556,1707268238491,-157.9,0.00023637,2]
[313391557,1707268238501,-670.71,0.00023727,2]
[313391558,1707268238510,-157.9,0.00023745,2]
[313391559,1707268238519,-154.48083983,0.00023778,2]
[313391560,1707268238528,-157.9,0.00023853,2]
[313391561,1707268238539,-157.9,0.00023961,2]
[313391562,1707268238548,-154.48083983,0.00024317,2]
[313391563,1707268238558,-2029.8,0.00024384,2]
[313391564,1707268238567,-250.0,0.00024658,2]
[313391565,1707268238576,-470.51,0.0002471,2]
[313391566,1707268238585,-178.02648422,0.000248,2]
[313391567,1707268238595,-154.48083983,0.00024856,2]
[313391568,1707268238604,-1808.87968704,0.00025,7]
[313391569,1707268238613,-670.71,0.00025371,2]
[313391570,1707268238623,-154.48083983,0.00025395,2]
[313391571,1707268238632,-7338.76865584,0.000256,2]
[313391572,1707268238641,-154.48083983,0.00025934,2]
[313391573,1707268238650,-150.0,0.00026079,2]
[313391574,1707268238659,-154.48083983,0.00026473,2]
[313391575,1707268238668,-182.65,0.000265,2]
[313391576,1707268238677,-1383.74375063,0.00026739,3]
[313391577,1707268238686,-470.51,0.00026974,2]
[313391578,1707268238695,-154.48083983,0.00027012,2]
[313391579,1707268238705,-670.71,0.00027015,2]
[313391580,1707268238714,-2419.0,0.000274,2]
[313391581,1707268238723,-10064.0,0.000274,2]
[313391582,1707268238732,-154.48083983,0.00027552,2]
[313391583,1707268238742,-7338.7686558,0.00027798,2]
[313391585,1707268238751,-154.48083983,0.00028091,2]
[313391586,1707268238760,-154.48083983,0.0002863,2]
[313391587,1707268238769,-670.71,0.00028659,2]
[313391588,1707268238778,-200.0,0.00028768,2]
[313391589,1707268238787,-500.718,0.0002878,2]
[313391590,1707268238796,-706.319,0.0002878,2]
[313391591,1707268238807,-272.715,0.0002878,2]
[313391592,1707268238816,-395.872,0.0002878,2]
[313391593,1707268238824,-208.874,0.0002878,2]
[313391594,1707268238833,-1000.0,0.000291,2]
[313391595,1707268238842,-154.48083983,0.00029169,2]
[313391596,1707268238851,-470.51,0.00029238,2]
[313391597,1707268238860,-155.0,0.000295,3]
[313391598,1707268238869,-154.48083983,0.00029708,2]
[313391599,1707268238878,-7338.7686558,0.00029996,2]
[313391600,1707268238887,-155.0,0.0003,2]
[313391601,1707268238896,-1704.186786,0.0003,7]
[313391602,1707268238905,-50000.0,0.00030013,7]
[313391603,1707268238914,-1500.0,0.00030137,7]
[313391604,1707268238923,-154.48083983,0.00030247,2]
[313391605,1707268238932,-670.71,0.00030303,2]
[313391606,1707268238941,-1383.74375063,0.00030579,5]
[313391607,1707268238950,-154.48083983,0.00030786,2]
[313391608,1707268238959,-502.0,0.000309,5]
[313391609,1707268238968,-424.73861792,0.00030925,2]
[313391610,1707268238976,-951.91231904,0.00030925,2]
[313391611,1707268238987,-1093.57711834,0.00030925,2]
[313391612,1707268238997,-84773.69268964,0.00031,7]
[313391613,1707268239007,-194.94101502,0.00031025,2]
[313391614,1707268239017,-154.48083983,0.00031325,2]
[313391615,1707268239026,-151.0207,0.00031448,7]
[313391616,1707268239036,-470.51,0.00031501,2]
[313391617,1707268239046,-365.66,0.00031549,2]
[313391618,1707268239055,-1232.0,0.00031549,2]
[313391619,1707268239064,-273.995,0.00031549,2]
[313391620,1707268239074,-150.768,0.00031549,2]
[313391621,1707268239084,-1000.0,0.00031579,2]
[313391622,1707268239093,-180.0,0.00031644,2]
[313391623,1707268239102,-154.48083983,0.00031864,2]
[313391624,1707268239111,-7338.7686558,0.00032195,4]
[313391625,1707268239120,-151.0207,0.00032448,7]
[313391626,1707268239129,-151.0207,0.00033448,7]
[313391627,1707268239140,-470.51,0.00033765,2]
[313391628,1707268239149,-154.6947835,0.000339,2]
[313391629,1707268239159,-500.0,0.00034,2]
[313391630,1707268239169,-500.0,0.00034,2]
[313391631,1707268239178,-500.0,0.00034,2]
[313391632,1707268239187,-500.0,0.00034,2]
[313391633,1707268239197,-500.0,0.00034,2]
[313391634,1707268239205,-500.0,0.00034,2]
[313391635,1707268239215,-500.0,0.00034,2]
[313391636,1707268239224,-480.33,0.00034,2]
[313391637,1707268239233,-176.99,0.00034,2]
[313391638,1707268239243,-205.0,0.00034264,2]
[313391639,1707268239255,-1059.76624773,0.000343,3]
[313391640,1707268239264,-1380.43962479,0.000343,3]
[313391641,1707268239273,-158.0,0.00034329,2]
[313391642,1707268239282,-7338.7686558,0.00034393,6]
[313391643,1707268239291,-1000.0,0.000344,7]
[313391644,1707268239301,-1383.74375063,0.00034419,7]
[313391645,1707268239310,-151.0207,0.00034448,7]
[313391646,1707268239318,-353.41,0.00034548,2]
[313391647,1707268239327,-800.0,0.00034718,2]
[313391648,1707268239336,-800.0,0.00034719,2]
[313391649,1707268239345,-500.0,0.00034719,2]
[313391650,1707268239354,-200.0,0.00034719,2]
[313391651,1707268239363,-200.0,0.00034719,2]
[313391652,1707268239372,-800.0,0.00034719,2]
[313391653,1707268239381,-800.0,0.00034719,2]
[313391654,1707268239390,-500.0,0.00034719,2]
[313391655,1707268239399,-500.0,0.00034719,2]
[313391656,1707268239407,-500.0,0.00034719,2]
[313391657,1707268239417,-500.0,0.00034719,2]
[313391658,1707268239425,-200.0,0.00034719,2]
[313391659,1707268239434,-200.0,0.00034719,2]
[313391660,1707268239443,-500.0,0.00034719,2]
[313391661,1707268239453,-500.0,0.00034719,2]
[313391662,1707268239463,-500.0,0.0003472,2]
[313391663,1707268239474,-200.0,0.0003472,2]
[313391664,1707268239483,-150.0,0.00034737,2]
[313391665,1707268239492,-151.0207,0.00034748,7]
[313391666,1707268239501,-150.0,0.00034751,2]
[313391667,1707268239510,-150.0,0.00034754,2]
[313391668,1707268239520,-150.0,0.00034773,2]
[313391669,1707268239530,-150.0,0.00034773,2]
[313391670,1707268239539,-150.0,0.00034777,2]
[313391671,1707268239549,-150.0,0.00034778,2]
[313391672,1707268239558,-150.0,0.00034778,2]
[313391673,1707268239567,-150.0,0.00034783,2]
[313391674,1707268239577,-150.0,0.00034794,2]
[313391675,1707268239586,-410.83,0.00034795,2]
[313391676,1707268239595,-417.58,0.00034795,2]
[313391677,1707268239604,-417.58,0.00034795,2]
[313391678,1707268239615,-410.83,0.00034795,2]
[313391679,1707268239625,-410.83,0.00034795,2]
[313391680,1707268239634,-417.58,0.00034795,2]
[313391681,1707268239645,-410.83,0.00034795,2]
[313391682,1707268239655,-417.58,0.00034795,2]
[313391683,1707268239664,-410.83,0.00034795,2]
[313391684,1707268239675,-410.83,0.00034795,2]
[313391685,1707268239684,-410.83,0.00034795,2]
[313391686,1707268239693,-573.76,0.00034795,2]
[313391687,1707268239702,-150.0,0.00034827,2]
[313391688,1707268239711,-150.0,0.0003483,2]
[313391689,1707268239721,-150.0,0.00034842,2]
[313391690,1707268239730,-300.0,0.00034843,2]
[313391691,1707268239740,-150.0,0.00034843,2]
[313391692,1707268239749,-150.0,0.00034846,2]
[313391693,1707268239760,-150.0,0.00034863,2]
[313391694,1707268239770,-150.0,0.00034866,2]
[313391695,1707268239779,-150.0,0.00034885,2]
[313391696,1707268239789,-150.0,0.00034897,2]
[313391697,1707268239800,-150.0,0.00034899,2]
[313391698,1707268239810,-1000.0,0.000349,2]
[313391699,1707268239819,-150.0,0.000349,2]
[313391700,1707268239828,-150.0,0.000349,2]
[313391701,1707268239838,-547.01751063,0.000349,2]
[313391702,1707268239848,-547.01751062,0.000349,2]
[313391703,1707268239858,-547.01751062,0.000349,2]
[313391704,1707268239869,-547.01751062,0.000349,2]
[313391705,1707268239878,-547.01751062,0.000349,2]
[313391706,1707268239887,-547.01751062,0.000349,2]
[313391707,1707268240002,-1009.62407667,0.000349,24]
[313391708,1707268240011,-547.01751062,0.000349,2]
[313391709,1707268240020,-547.01751062,0.000349,2]
[313391710,1707268240029,-5000.0,0.000349,3]
[313391711,1707268240039,-150.0,0.00034907,2]
[313391712,1707268240049,-150.0,0.00034912,2]
[313391713,1707268240057,-150.0,0.0003492,2]
[313391714,1707268240066,-150.0,0.00034929,2]
[313391715,1707268240078,-150.0,0.00034937,2]
[313391716,1707268240088,-150.0,0.00034938,2]
[313391717,1707268240097,-150.0,0.00034941,2]
[313391718,1707268240109,-150.0,0.00034941,2]
[313391719,1707268240119,-150.0,0.00034942,2]
[313391720,1707268240130,-150.0,0.0003495,2]
[313391721,1707268240139,-150.0,0.00034957,2]
[313391722,1707268240147,-150.0,0.00034962,2]
[313391723,1707268240156,-150.0,0.00034975,2]
[313391724,1707268240166,-150.0,0.00034977,2]
[313391725,1707268240175,-150.0,0.00034977,2]
[313391726,1707268240185,-261.38690075,0.00034977,2]
[313391727,1707268240196,-150.0,0.00034979,2]
[313391728,1707268240206,-150.0,0.00034979,2]
[313391729,1707268240216,-300.0,0.0003498,2]
[313391730,1707268240226,-150.0,0.00034988,2]
[313391731,1707268240235,-150.0,0.00034991,2]
[313391732,1707268240243,-150.0,0.00034994,2]
[313391733,1707268240253,-150.0,0.00034994,2]
[313391734,1707268240261,-150.0,0.00034995,2]
[313391735,1707268240271,-365.07230987,0.00034998,4]
[313391736,1707268240280,-208.41030953,0.00034998,90]
[313391737,1707268240290,-155.0,0.00034998,4]
[313391738,1707268240299,-1080.02787074,0.00034998,4]
[313391739,1707268240308,-155.0,0.00034999,4]
[313391740,1707268240318,-571.82764185,0.00034999,4]
[313391741,1707268240329,-336.95912821,0.00034999,30]
[313391742,1707268240339,-150.0,0.00034999,2]
[313391743,1707268240349,-150.0,0.00034999,2]
[313391744,1707268240359,-268.28668936,0.00034999,2]
[313391745,1707268240368,-150.0,0.00034999,2]
[313391746,1707268240377,-150.0,0.00034999,2]
[313391747,1707268240385,-194.82108817,0.00035,3]
[313391748,1707268240394,-692524.89070045,0.00035,3]
[313391749,1707268240403,-287361.86895683,0.00035,7]
[313391750,1707268240686,-8371.29177326,0.00035,7]
[313391751,1707268240897,-22395.00259949,0.00035,7]
[313391773,1707268243274,-288.11805248,0.00035,7]
[313391774,1707268243380,-4924.33158281,0.00035,7]
[313391775,1707268243435,-875.41825343,0.00035,7]
[313391776,1707268243492,-752.66938772,0.00035,7]
[313391777,1707268243548,-4080.61901864,0.00035,7]
[313391778,1707268243569,-6872.00481037,0.00035,7]
[313391780,1707268246307,-451.0,0.00035,5]
[313391781,1707268246317,-12579.925832,0.00035,7]
[313391782,1707268246329,-1390.99999998,0.00035,7]
[313391783,1707268246341,-2440.30931548,0.00035,7]
[313391784,1707268246519,-274.73935495,0.00035,7]
[313391785,1707268246532,-6407.21055527,0.00035,7]
[313391786,1707268246575,-1718.67884822,0.00035,7]
[313391787,1707268246588,-3912.45662231,0.00035,7]
[313391788,1707268984106,7135.10638769,0.00022798,5]
[313391789,1707269419647,7136.82336758,0.00022798,5]
[313391798,1707269431697,-208.75325702,0.00022682,2]
[313391799,1707269431707,-421.0683091,0.00022699,2]
[313391800,1707269431716,-63.48418167,0.000227,2]
[313391822,1707269437451,-112.93472565,0.000227,2]
[313391823,1707269437461,-625.60747001,0.00022799,2]
[313391824,1707269437474,-107.83252999,0.00022799,2]
[313391825,1707269437484,-725.4,0.00022799,2]
[313391826,1707269437494,-5759.7154,0.00022799,2]
[313391827,1707269437503,-439.4503,0.000228,2]
[313391829,1707269437513,-244.99768857,0.00022898,2]
[313391835,1707269437596,-755.00231143,0.00022898,2]
[313391836,1707269437606,-176.41890726,0.00023342,2]
[313391837,1707269437617,-176.41890726,0.00023984,2]
[313391838,1707269437754,-176.41890726,0.00024626,2]
[313391839,1707269437764,-350.0,0.00025,3]
[313391840,1707269437773,-176.41890726,0.00025268,2]
[313391841,1707269437782,-176.41890726,0.00025911,2]
[313391842,1707269437792,-176.41890726,0.00026553,2]
[313391843,1707269437801,-400.0,0.00027,3]
[313391844,1707269437810,-176.41890726,0.00027195,2]
[313391845,1707269437819,-176.41890726,0.00027837,2]
[313391846,1707269437828,-176.41890726,0.00028479,2]
[313391847,1707269437838,-450.0,0.00029,3]
[313391848,1707269437847,-176.41890726,0.00029121,2]
[313391849,1707269437856,-155.0,0.000295,3]
[313391850,1707269437866,-222.37,0.000295,12]
[313391851,1707269437876,-499.99,0.000295,2]
[313391852,1707269437885,-176.41890726,0.00029763,2]
[313391853,1707269437895,-155.0,0.0003,2]
[313391854,1707269437905,-457.37,0.00030033,2]
[313391856,1707269437914,-347.246,0.00030035,2]
[313391858,1707269437923,-368.497,0.00030035,2]
[313391859,1707269437931,-1228.02,0.00030035,2]
[313391860,1707269437941,-288.501,0.00030035,2]
[313391861,1707269437950,-176.41890726,0.00030405,2]
[313391862,1707269437959,-500.0,0.00031,3]
[313391863,1707269437969,-390.43,0.00031064,2]
[313391864,1707269437978,-491.0,0.000311,2]
[313391865,1707269437987,-927.68015293,0.00031407,14]
[313391866,1707269437996,-4146.74204382,0.00031407,10]
[313391867,1707269438005,-159.87,0.00032599,2]
[313391868,1707269438014,-159.87,0.00032842,2]
[313391869,1707269438023,-500.0,0.000329,2]
[313391872,1707269438033,-1500.0,0.00032945,7]
[313391875,1707269438042,-1000.0,0.00032995,2]
[313391878,1707269438050,-550.0,0.00033,3]
[313391881,1707269438060,-250.0,0.00033003,2]
[313391884,1707269438069,-250.0,0.00033042,2]
[313391887,1707269438079,-1930.73,0.00033044,2]
[313391890,1707269438088,-159.87,0.00033084,2]
[313391893,1707269438097,-1872.0,0.000332,7]
[313391896,1707269438106,-150.0,0.00033201,2]
[313391899,1707269438116,-159.87,0.00033327,2]
[313391901,1707269438125,-390.43,0.00033328,2]
[313391903,1707269438134,-1691.5,0.00033485,2]
[313391905,1707269438143,-159.87,0.0003357,2]
[313391907,1707269438152,-159.87,0.00033813,2]
[313391908,1707269438162,-500.0,0.00034,2]
[313391910,1707269438171,-500.0,0.00034,2]
[313391911,1707269438180,-500.0,0.00034,2]
[313391912,1707269438189,-500.0,0.00034,2]
[313391914,1707269438198,-500.0,0.00034,2]
[313391915,1707269438207,-500.0,0.00034,2]
[313391916,1707269438216,-500.0,0.00034,2]
[313391917,1707269438225,-480.33,0.00034,2]
[313391918,1707269438235,-176.99,0.00034,2]
[313391919,1707269438246,-159.87,0.00034055,2]
[313391920,1707269438256,-558.21267885,0.00034178,4]
[313391921,1707269438265,-187.80474805,0.00034178,4]
[313391922,1707269438275,-302.26128531,0.00034178,4]
[313391923,1707269438284,-9130.99548296,0.00034178,5]
[313391924,1707269438297,-457.82669997,0.00034178,5]
[313391925,1707269438306,-4440.72518409,0.00034179,2]
[313391926,1707269438317,-31983.85892145,0.0003418,3]
[313391927,1707269438329,-1105.26338964,0.00034204,4]
[313391928,1707269438339,-159.87,0.00034298,2]
[313391929,1707269438348,-151.0207,0.00034548,7]
[313391930,1707269438362,-353.41,0.00034548,2]
[313391931,1707269438373,-151.0207,0.00034648,7]
[313391932,1707269438382,-800.0,0.00034718,2]
[313391933,1707269438391,-800.0,0.00034719,2]
[313391934,1707269438401,-500.0,0.00034719,2]
[313391935,1707269438410,-200.0,0.00034719,3]
[313391936,1707269438420,-200.0,0.00034719,2]
[313391937,1707269438429,-200.0,0.00034719,2]
[313391938,1707269438439,-800.0,0.00034719,2]
[313391939,1707269438451,-800.0,0.00034719,2]
[313391940,1707269438461,-500.0,0.00034719,2]
[313391941,1707269438470,-500.0,0.00034719,2]
[313391942,1707269438479,-500.0,0.00034719,2]
[313391943,1707269438488,-500.0,0.00034719,2]
[313391944,1707269438497,-200.0,0.00034719,2]
[313391945,1707269438506,-200.0,0.00034719,2]
[313391946,1707269438515,-500.0,0.00034719,2]
[313391947,1707269438525,-500.0,0.00034719,2]
[313391948,1707269438535,-500.0,0.0003472,2]
[313391949,1707269438544,-200.0,0.0003472,2]
[313391950,1707269438553,-150.0,0.00034726,2]
[313391951,1707269438562,-150.0,0.00034729,2]
[313391952,1707269438571,-150.0,0.00034731,2]
[313391953,1707269438581,-150.0,0.00034745,2]
[313391954,1707269438590,-150.0,0.00034746,2]
[313391955,1707269438599,-151.0207,0.00034748,7]
[313391956,1707269438609,-150.0,0.00034748,2]
[313391957,1707269438619,-150.0,0.00034749,2]
[313391958,1707269438628,-150.0,0.00034753,2]
[313391959,1707269438637,-150.0,0.00034755,2]
[313391960,1707269438646,-150.0,0.00034762,2]
[313391961,1707269438656,-150.0,0.00034766,2]
[313391962,1707269438665,-150.0,0.00034789,2]
[313391963,1707269438674,-150.0,0.00034791,2]
[313391964,1707269438684,-150.0,0.00034795,2]
[313391965,1707269438694,-150.0,0.00034797,2]
[313391966,1707269438706,-221.13755376,0.00034798,2]
[313391967,1707269438716,-1283.34665071,0.00034799,2]
[313391968,1707269438741,-4754.07984929,0.00034799,2]
[313391969,1707269438751,-278.27588833,0.000348,2]
[313391970,1707269438762,-357.75811167,0.000348,2]
[313391971,1707269438772,-4196.9484,0.000348,2]
[313391972,1707269438781,-150.0,0.00034821,2]
[313391973,1707269438790,-150.0,0.00034826,2]
[313391974,1707269438800,-150.0,0.00034833,2]
[313391975,1707269438809,-150.0,0.00034835,2]
[313391976,1707269438818,-150.0,0.00034845,2]
[313391977,1707269438827,-151.0207,0.00034848,7]
[313391978,1707269438836,-150.0,0.00034855,2]
[313391979,1707269438845,-150.0,0.00034855,2]
[313391980,1707269438854,-150.0,0.00034876,2]
[313391981,1707269438863,-150.0,0.00034877,2]
[313391982,1707269438873,-150.0,0.00034882,2]
[313391983,1707269438882,-150.0,0.00034883,2]
[313391984,1707269438892,-150.0,0.00034886,2]
[313391985,1707269438901,-150.0,0.00034886,2]
[313391986,1707269438910,-150.0,0.00034887,2]
[313391987,1707269438919,-150.0,0.00034888,2]
[313391988,1707269438928,-150.0,0.00034889,2]
[313391989,1707269438937,-8617.1764,0.0003489,2]
[313391990,1707269438947,-1569.7766,0.0003489,2]
[313391991,1707269438956,-150.0,0.00034892,2]
[313391992,1707269438965,-215.3138845,0.00034897,4]
[313391993,1707269438974,-202.09232805,0.00034897,4]
[313391994,1707269438988,-2030.25659675,0.00034899,14]
[313391995,1707269439000,-15788.51962697,0.00034899,4]
[313391996,1707269439020,-8716.33636451,0.00034899,4]
[313391997,1707269439032,-1364.66537689,0.000349,14]
[313391998,1707269439045,-2000.0,0.000349,4]
[313391999,1707269439054,-5544.82535549,0.000349,2]
[313392000,1707269439068,-1150.0,0.000349,2]
[313392001,1707269439084,-674.975,0.000349,2]
[313392002,1707269439098,-5515.56170771,0.000349,2]
[313392003,1707269439117,-911.59848134,0.000349,2]
[313392004,1707269439133,-2191.9173424,0.000349,2]
[313392005,1707269439149,-310.24010705,0.000349,2]
[313392006,1707269439162,-1332.08172666,0.000349,2]
[313392007,1707269439194,-4224.5457729,0.000349,2]
[313392008,1707269439211,-2500.0,0.000349,2]
[313392009,1707269439225,-2212.0210525,0.000349,2]
[313392010,1707269439240,-1711.8021486,0.000349,2]
[313392012,1707269440107,-952.33350921,0.00034199,3]
[313392013,1707269440155,-179.04383339,0.00034199,3]
[313392014,1707269440167,-252.37616661,0.000349,2]
[313392015,1707269440196,-1714.79588392,0.000349,2]
[313392016,1707269441027,-761.32869265,0.000349,2]
[313392022,1707269445705,-155.681,0.00029883,2]
[313392023,1707269445717,-130.09701733,0.0003489,10]
[313392024,1707269445731,-1342.98298267,0.0003489,10]
[313392025,1707269445742,-30365.62732398,0.000349,2]
[313392026,1707269445811,-1070.68701914,0.000349,2]
[313392028,1707269897261,12837.0,0.0002705,120]
[313392040,1707270631592,-350.0,0.00025,3]
[313392041,1707270631604,-138.58758136,0.00026175,2]
[313392046,1707270631647,-17.23622793,0.00026175,2]
[313392047,1707270631656,-157.50345712,0.0002695,2]
[313392048,1707270631666,-400.0,0.00027,3]
[313392049,1707270631675,-6061.53947925,0.00027049,5]
[313392050,1707270631687,-1075.28388833,0.00027049,5]
[313392051,1707270631696,-200.0,0.0002705,2]
[313392052,1707270631706,-511.43332794,0.0002705,2]
[313392053,1707270631716,-164.02874364,0.0002705,2]
[313392054,1707270631729,-155.80220656,0.0002705,2]
[313392055,1707270631739,-285.92472747,0.0002705,2]
[313392056,1707270631748,-1230.2200302,0.000273,2]
[313392057,1707270631762,-530.26541467,0.000273,2]
[313392058,1707270631790,-323.26186872,0.000273,2]
[313392059,1707270631833,-215.25268641,0.000273,2]
[313392060,1707270631843,-84.58731359,0.000273,2]
[313392061,1707270631895,-9013.41268641,0.000273,2]
[313392062,1707270631904,-157.5034571,0.00027931,2]
[313392063,1707270631916,-157.5034571,0.00028913,2]
[313392064,1707270631926,-450.0,0.00029,3]
[313392065,1707270631937,-155.0,0.000295,3]
[313392066,1707270631951,-164.167,0.00029883,2]
[313392067,1707270631960,-150.289,0.00029883,2]
[313392070,1707270631970,-247.832,0.00029883,2]
[313392073,1707270631980,-157.5034571,0.00029894,2]
[313392076,1707270631990,-155.0,0.0003,2]
[313392078,1707270631999,-351.38,0.00030599,2]
[313392080,1707270632010,-157.5034571,0.00030875,2]
[313392082,1707270632021,-500.0,0.00031,3]
[313392084,1707270632030,-210.0,0.00031553,2]
[313392086,1707270632040,-157.5034571,0.00031856,2]
[313392088,1707270632050,-157.5034571,0.00032838,2]
[313392090,1707270632060,-351.38,0.00032863,2]
[313392092,1707270632069,-150.0,0.00032883,2]
[313392094,1707270632079,-500.0,0.000329,2]
[313392096,1707270632089,-180.24931416,0.00033,14]
[313392098,1707270632098,-550.0,0.00033,3]
[313392100,1707270632109,-250.0,0.00033073,2]
[313392103,1707270632120,-250.0,0.000331,2]
[313392105,1707270632131,-200.0,0.00033103,2]
[313392107,1707270632141,-313.18,0.0003312,2]
[313392109,1707270632150,-150.0,0.00033182,2]
[313392111,1707270632160,-1000.0,0.000332,7]
[313392113,1707270632170,-1500.0,0.00033293,7]
[313392115,1707270632179,-3202.7522745,0.00033501,2]
[313392117,1707270632190,-800.0,0.00033547,2]
[313392118,1707270632199,-1409.58,0.00033672,2]
[313392119,1707270632211,-157.5034571,0.00033819,2]
[313392120,1707270632222,-156.99613388,0.000339,2]
[313392121,1707270632231,-3000.0,0.00034,3]
[313392122,1707270632240,-2806.12196882,0.00034201,4]
[313392123,1707270632250,-1315.76298092,0.00034202,3]